Cogmind - Beta 16.1 @@@ ROGUE MODE // 2026.04.25 @ 16:52:34 Player: kareds Result: Destroyed by S-27 Virus with Autogun Performance ------------- Evolutions (4) 2000 Regions Visited (9) 1800 Robots Destroyed (88) 440 Value Destroyed (2675) 2675 Prototype IDs (8) 160 Alien Tech Used (0) 0 Bonus (0) 0 TOTAL SCORE: 7075 Bonus ------- None Cogmind --------- Core Integrity 0/850 Matter 300/300 Energy 99/100 System Corruption 0% Temperature Cool (0) Movement Core (50) Location -6/Lower Caves Parts ------- > --- POWER (2) -------- (None) > --- PROPULSION (3) --- (None) > --- UTILITY (8) ------ (None) > --- WEAPON (2) ------- (None) > --- INVENTORY (5) ---- Cooled Pulse Rifle Power Maul Peak State ------------ > --- POWER ------------ Light Nuclear Core Micro Nuclear Core > --- PROPULSION ------- Advanced Treads Improved Medium Treads Improved Medium Treads > --- UTILITY ---------- Coolant Injector Advanced Weight Redist. System Advanced Visual Processing Unit Advanced Targeting Computer Transmission Jammer Hardened Light Armor Plating Focal Shield Corruption Screen > --- WEAPON ----------- Gatling Laser Power Maul > --- INVENTORY -------- Compact Battery [Rating: 56] Favorites ----------- Power Light Nuclear Core Engine Light Ion Engine Power Core Light Nuclear Core Propulsion Advanced Treads Treads Advanced Treads Leg Carbon-fiber Leg Hover Unit Gravmag System Flight Unit VTOL Module Utility Advanced Visual Processing Unit Device Improved Heat Sink Storage Compact Matter Pod Processor Advanced Visual Processing Unit Protection Improved Weapon Shielding Weapon Enhanced Autogun Energy Gun Heavy Particle Gun Energy Cannon Advanced Beam Cannon Ballistic Gun Enhanced Autogun Ballistic Cannon Flak Cannon Impact Weapon Heavy Mace Build | -11 -10 -9 -8 -8 -7 -7 -7 -6 -6 ------- Run | Yrd Mat Mat Mat Sto Fac Was Fac Fac Low Slots Evolved 8 | . . 2 2 . 2 . . 2 . Power 1 | . . . . . 1 . . . . Propulsion 1 | . . . 1 . . . . . . Utility 6 | . . 2 1 . 1 . . 2 . Weapon . | . . . . . . . . . . Parts Attached 108 | 7 2 15 19 24 15 2 13 10 1 Power 17 | 1 1 2 2 4 3 . 3 1 . Engine 8 | 1 1 2 1 . 2 . 1 . . Core 9 | . . . 1 4 1 . 2 1 . Reactor . | . . . . . . . . . . Propulsion 32 | 2 . 4 6 8 2 2 2 6 . Treads 16 | 2 . 4 . 7 . . . 3 . Leg 7 | . . . 6 1 . . . . . Wheel . | . . . . . . . . . . Hover 2 | . . . . . 2 . . . . Flight 7 | . . . . . . 2 2 3 . Utility 34 | 2 1 4 6 6 8 . 5 1 1 Device 15 | 1 . . 1 4 4 . 3 1 1 Storage 8 | 1 1 . 3 1 1 . 1 . . Processor 6 | . . 3 1 . 1 . 1 . . Hackware . | . . . . . . . . . . Protection 5 | . . 1 1 1 2 . . . . Artifact . | . . . . . . . . . . Weapon 25 | 2 . 5 5 6 2 . 3 2 . Energy Gun 8 | 1 . 1 1 1 . . 2 2 . Energy Cannon 6 | . . 1 2 1 2 . . . . Ballistic Gun 8 | 1 . 3 1 3 . . . . . Ballistic Cannon 1 | . . . . 1 . . . . . Launcher . | . . . . . . . . . . Special Weapon . | . . . . . . . . . . Impact Weapon 2 | . . . 1 . . . 1 . . Slashing Weapon . | . . . . . . . . . . Piercing Weapon . | . . . . . . . . . . Special Melee Weapon . | . . . . . . . . . . Unidentified Prototypes 7 | . . 2 1 2 . . 1 1 . Corrupted Parts 2 | . . . . . 2 . . . . System Corruption 5 | . . . . . 5 . . . . Parts Lost 40 | . 1 1 7 9 6 2 3 7 4 Power 8 | . 1 . 1 1 2 . . 2 1 Propulsion 16 | . . . 3 3 2 1 2 3 2 Utility 14 | . . 1 3 5 1 1 1 1 1 Weapon 2 | . . . . . 1 . . 1 . Highest Loss Streak 4 | . 1 1 3 4 4 2 1 4 4 To Critical Strikes . | . . . . . . . . . . Average Backups 4 | . . 4 8 4 4 4 3 1 2 Power . | . . . . . . . . . . Propulsion 1 | . . 1 3 3 2 1 . . . Utility 1 | . . . . 1 2 3 2 . . Weapon 1 | . . 2 3 . . . . . 2 Tool/Special . | . . . . . . . . . . Unused Backups 10 | . . 1 2 2 2 . . 2 1 Power 1 | . . . 1 . . . . . . Propulsion 4 | . . 1 . 2 . . . 1 . Utility 3 | . . . . . 2 . . 1 . Weapon 2 | . . . 1 . . . . . 1 Tool/Special . | . . . . . . . . . . Average Slot Usage (%) 88 | . 99 94 89 91 85 76 82 79 73 Engine 3 | . 14 11 1 2 1 3 . . . Core 5 | . . . 5 6 6 . 6 8 5 Treads 14 | . 28 22 6 23 13 . . 12 . Leg 3 | . . . 19 2 . . . . . Flight 3 | . . . . . . 7 20 4 17 Device 12 | . 14 8 3 6 19 19 17 21 21 Storage 11 | . 13 11 14 16 8 7 4 2 5 Processor 13 | . . 15 18 11 10 15 20 20 17 Protection 2 | . . 3 2 3 5 . . . . Energy Gun 4 | . 14 6 8 . 3 . 6 1 5 Energy Cannon 3 | . . . 3 . 10 11 . . . Ballistic Gun 5 | . 14 15 2 9 . . . . . Impact Weapon 1 | . . . 2 4 . . 2 5 . Peak Build Rating 56 | 7 7 22 29 39 39 35 45 56 47 Average Rating 28 | 5 6 16 24 29 35 29 35 45 39 On Entrance 23 | . 7 7 22 24 28 35 26 44 42 Avg Prop Armor Cover (%) 11 | . . . 10 . . 9 9 22 . Naked Turns 30 | . . . . . . . . . 30 Heaviest Build 43 | 11 26 37 43 38 28 19 24 26 14 Greatest Support 91 | 40 40 43 63 66 64 18 24 91 14 Greatest Overweight (x) 3 | . . . 1 1 3 1 1 3 3 Average Overweight (x) . | . . . . . . . . . . Largest Inventory Capacity 15 | 8 15 15 15 15 5 5 5 5 5 Average Capacity 8 | 7 11 15 15 6 5 5 5 5 5 Most Carried 12 | 1 1 8 12 9 5 5 5 5 2 Average Carried 4 | . . 4 8 4 4 3 3 1 2 Final Capacity 15 | 8 15 15 15 5 5 5 5 5 5 Final Carried 8 | 1 . 6 8 5 5 3 5 2 2 Class Distribution -------------------- 73% | Mutant 15% | Scavenger-Mutant 8% | Sprinter Dominant Class ---------------- Mutant | -10/Materials Mutant | -9/Materials Scavenger-Mutant | -8/Materials Mutant | -8/Storage Mutant | -7/Factory Sprinter | -7/Waste Sprinter | -7/Factory Mutant | -6/Factory Scavenger-Sprinter | -6/Lower Caves Resources | -11 -10 -9 -8 -8 -7 -7 -7 -6 -6 ----------- Run | Yrd Mat Mat Mat Sto Fac Was Fac Fac Low Matter Collected 2573 | 212 87 208 502 1082 155 . 156 121 50 Remotely . | . . . . . . . . . . Salvage Created 3333 | 68 116 250 503 1432 388 . 176 330 70 Parts 170 | 9 7 18 21 75 20 . 8 10 2 Haulers Intercepted 4 | . . . 1 3 . . . . . Recyclers Shooed . | . . . . . . . . . . Parts Field Recycled . | . . . . . . . . . . Retrieved Matter . | . . . . . . . . . . Parts Self-Destructed 1 | . . . . . . . . . 1 Prevented . | . . . . . . . . . . Parts Restored . | . . . . . . . . . . Kills | -11 -10 -9 -8 -8 -7 -7 -7 -6 -6 ------- Run | Yrd Mat Mat Mat Sto Fac Was Fac Fac Low Combat Hostiles Destroyed 62 | . 2 8 14 22 7 . 2 6 1 Melee 3 | . . . 1 . . . . 2 . Guns 37 | . 2 8 9 16 . . 1 . 1 Cannons 14 | . . . 2 6 6 . . . . AOE 1 | . . . . . 1 . . . . Classes Destroyed 12 | 1 2 2 3 3 1 . . . . Worker 5 | . . . . 3 . . 1 1 . Builder 2 | . . . . 1 1 . . . . Tunneler 3 | 3 . . . . . . . . . Hauler 4 | . . . 1 3 . . . . . Recycler 4 | . . . . 4 . . . . . Operator 5 | . 2 . . 1 1 . 1 . . Watcher 3 | . . . 1 1 . . 1 . . Swarmer 18 | . . 4 7 3 . . . 4 . Grunt 23 | . 2 1 4 11 5 . . . . Sentry 13 | . . 3 . 7 . . 2 1 . Hunter 6 | . . . 3 1 . . . 1 1 Programmer 2 | . . . . . 2 . . . . Best Kill Streak 7 | 1 2 5 7 6 7 . 2 4 1 Combat Bots Only 7 | . 2 5 7 5 5 . 1 4 1 Max Kills in Single Turn 2 | 1 1 2 1 1 1 . 1 1 1 Gunslinging . | . . . . . . . . . . Exploded 1 | . . . . . 1 . . . . Melee 1 | . . . 1 . . . . 1 . Uniques/NPCs Destroyed . | . . . . . . . . . . Combat | -11 -10 -9 -8 -8 -7 -7 -7 -6 -6 -------- Run | Yrd Mat Mat Mat Sto Fac Was Fac Fac Low Hostile Shots Fired 1047 | . 38 59 271 247 78 1 74 181 98 Missed 338 | . 16 16 82 77 23 . 35 54 35 Hits 709 | . 22 43 189 170 55 1 39 127 63 Melee 2 | . . . . . . 1 . . 1 Projectile 707 | . 22 43 189 170 55 . 39 127 62 Critical Strikes 18 | . . . 3 11 4 . . . . Actively Blocked 1 | . . . . . 1 . . . . Part Disruptions 1 | . . . . . 1 . . . . Damage Taken 8398 | . 312 468 1988 2320 909 32 326 1078 965 Core 1749 | . 36 33 314 229 187 . 95 123 732 Absorbed by Shields . | . . . . . . . . . . Redirected to Shielding 129 | . . . . . 129 . . . . Ignored by Resistances 311 | . . . . . . . . 227 84 Regen/Repaired (Parts) 53 | . . . 53 . . . . . . Core Remaining (%) 67 | 100 85 91 . 1 . . 59 . . Volleys Fired 297 | 9 13 19 51 131 40 2 23 . 9 Largest 2 | 2 2 2 2 2 2 1 1 . 1 Hottest 156 | 60 60 78 140 75 156 68 80 . 20 Shots Fired 444 | 18 26 31 79 200 57 2 22 . 9 Gun 333 | 18 26 31 66 161 . . 22 . 9 Cannon 111 | . . . 13 39 57 2 . . . Launcher . | . . . . . . . . . . Special . | . . . . . . . . . . Kinetic 258 | 9 13 15 29 192 . . . . . Thermal 178 | 9 13 16 50 8 49 2 22 . 9 Explosive . | . . . . . . . . . . Electromagnetic 8 | . . . . . 8 . . . . Robot Hit Streak 16 | 3 4 6 7 14 9 3 16 . 4 Robot Miss Streak 8 | 2 3 8 5 6 3 . 4 . 2 Penetration Max . | . . . . . . . . . . Secondary Targets 2 | . 1 . 1 . . . . . . Max Gunslinging Chain 1 | . 1 . 1 . . . . . . Shots Hit Robots 303 | 10 14 17 53 131 34 2 21 15 6 Core Hits 157 | 4 8 10 19 81 13 . 17 2 3 Critical Kills . | . . . . . . . . . . Critical Parts Destroyed 4 | . . . 2 . . . . 2 . Critical Strikes 6 | . . . 3 . . . . 3 . Burn 1 | . . . 1 . . . . . . Smash 5 | . . . 2 . . . . 3 . Melee Attacks 39 | . . . 17 1 . . . 21 . Impact 39 | . . . 17 1 . . . 21 . Slashing . | . . . . . . . . . . Piercing . | . . . . . . . . . . Sneak Attacks 3 | . . . 1 1 . . . 1 . Combat Hostiles . | . . . . . . . . . . Follow-up Attacks . | . . . . . . . . . . Damage Inflicted 6571 | 94 118 336 1206 2440 1012 41 464 743 117 Guns 3388 | 94 117 336 672 1592 . . 464 . 113 Cannons 1746 | . . . 150 796 759 41 . . . Explosions 250 | . . . . . 250 . . . . Melee 1172 | . . . 380 49 . . . 743 . Ramming 15 | . 1 . 4 3 3 . . . 4 Kinetic 2766 | 31 62 147 238 2288 . . . . . Thermal 2478 | 63 55 189 584 100 869 41 464 . 113 Explosive . | . . . . . . . . . . Electromagnetic 140 | . . . . . 140 . . . . Impact 1172 | . . . 380 49 . . . 743 . Slashing . | . . . . . . . . . . Piercing . | . . . . . . . . . . Highest Corruption 16 | . 2 . 2 2 9 16 16 . . Average Corruption 5 | . 1 . 2 2 7 14 16 . . Corruption Purged . | . . . . . . . . . . Corruption Blocked . | . . . . . . . . . . Effects 57 | . 2 . 7 17 6 3 22 . . Message Errors 12 | . . . 1 4 1 1 5 . . Matter Fused 10 | . . . 1 4 . . 5 . . Heat Flow Errors 9 | . . . 2 2 2 . 3 . . Energy Discharges 8 | . 2 . 1 2 . 1 2 . . Parts Rejected 2 | . . . . 1 1 . . . . Data Loss (minor) 1 | . . . . . . . 1 . . Data Loss (major) 4 | . . . . 1 1 . 2 . . Misfires 4 | . . . 1 1 1 . 1 . . Alerts 1 | . . . 1 . . . . . . Misdirections 2 | . . . . . . 1 1 . . Weapon Failures 4 | . . . . 2 . . 2 . . Overload Shots . | . . . . . . . . . . Overflow Damage 482 | . . . 136 11 9 . . 326 . Projectiles 11 | . . . . 2 9 . . . . Explosions . | . . . . . . . . . . Melee 471 | . . . 136 9 . . . 326 . Knockbacks 19 | . . . 1 17 . . . 1 . Impact 3 | . . . 1 1 . . . 1 . Kinetic 16 | . . . . 16 . . . . . Secondary . | . . . . . . . . . . Self-Inflicted Damage 63 | . . . . . 61 . . . 2 Shots 1 | . . . . . 1 . . . . Rammed 4 | . 1 . . 2 . . . . 1 Targets Rammed 7 | . 1 . 1 3 1 . . . 1 Kicked 1 | . . . 1 . . . . . . Crushed 2 | . . . . 1 1 . . . . Highest Temperature 422 | 40 58 85 422 278 203 22 173 376 . Average Temperature 59 | 17 20 36 104 43 39 16 35 105 . Received Heat Transfer 2391 | . 90 126 279 1098 405 . 114 162 117 Effects 3 | . . . 2 1 . . . . . Shutdowns 1 | . . . 1 . . . . . . Energy Bleed 2 | . . . 1 1 . . . . . Siege Activations . | . . . . . . . . . . Martial Activations . | . . . . . . . . . . Shielding Activations . | . . . . . . . . . . Robots Disrupted . | . . . . . . . . . . Combat Hostiles . | . . . . . . . . . . Robots Corrupted 7 | . . . 3 . . . . 4 . Combat Hostiles 6 | . . . 2 . . . . 4 . Parts Fried 9 | . . . 5 . 1 . . 3 . Impact Corruptions 19 | . . . 7 1 . . . 11 . Robots Melted 1 | . . . . . . . 1 . . Combat Hostiles 1 | . . . . . . . 1 . . Parts Melted 8 | . . . 2 . 1 . 5 . . Heat Transferred 4472 | 150 125 370 1184 148 1149 74 1050 . 222 Parts Sabotaged . | . . . . . . . . . . Parts Stolen . | . . . . . . . . . . Parts Stripped . | . . . . . . . . . . Power Chain Reactions . | . . . . . . . . . . Alert | -11 -10 -9 -8 -8 -7 -7 -7 -6 -6 ------- Run | Yrd Mat Mat Mat Sto Fac Was Fac Fac Low Maximum Alert Level 1 | . . . . 1 . . . . . Low Security (%) 95 | 100 100 100 100 82 100 100 100 100 . Level 1 4 | . . . . 17 . . . . . Level 2 . | . . . . . . . . . . Level 3 . | . . . . . . . . . . Level 4 . | . . . . . . . . . . Level 5 . | . . . . . . . . . . High Security . | . . . . . . . . . . Max Security . | . . . . . . . . . . Peak Influence 283 | 5 40 182 184 283 170 50 45 60 . Initial 123 | . . . 56 13 123 50 7 14 . Average 48 | . 5 44 67 75 52 28 12 21 . Influence Increases 2050 | 15 62 271 369 680 306 . 157 160 30 Destroy 0b10 Robot/C 1240 | . 40 160 280 440 140 . 40 120 20 Destroy 0b10 Robot/NC 135 | 15 10 . 10 65 10 . 15 10 . Destroy Leader 344 | . 10 50 54 128 40 . 22 30 10 Successful Hack 36 | . 2 . 2 27 . . 5 . . Disable Machine 105 | . . . 15 15 75 . . . . Destroy Structure 40 | . . 1 8 5 26 . . . . Partial Spotted 15 | . . . . . 15 . . . . Lose Combat Pursuer 135 | . . 60 . . . . 75 . . Influence Decreases 2050 | 15 62 136 473 439 433 135 136 171 50 Entered New Map 369 | . . . 79 18 149 95 3 17 8 Time Decay 1391 | 15 52 126 354 321 224 20 123 114 42 Lost Part 270 | . 10 10 40 80 60 20 10 40 . Lost Ally 20 | . . . . 20 . . . . . Squads Dispatched 23 | . 1 2 3 7 6 . 4 . . Investigation 7 | . . . 2 3 2 . . . . Extermination 3 | . . . . . 2 . 1 . . Reinforcement 9 | . 1 2 1 . 2 . 3 . . Assault . | . . . . . . . . . . Garrison 4 | . . . . 4 . . . . . Intercept . | . . . . . . . . . . Searches Triggered . | . . . . . . . . . . Construction Impeded . | . . . . . . . . . . Haulers Reinforced . | . . . . . . . . . . Active Scanning Responses . | . . . . . . . . . . Cargo Convoy Interrupts . | . . . . . . . . . . Stealth | -11 -10 -9 -8 -8 -7 -7 -7 -6 -6 --------- Run | Yrd Mat Mat Mat Sto Fac Was Fac Fac Low Distress Signals 4 | . 1 1 1 1 . . . . . Communications Jammed 18 | . . . . . . . . 18 . Distress Signals 18 | . . . . . . . . 18 . Times Spotted 123 | . 7 13 24 31 15 6 11 7 9 Peak Tracking Total 8 | . 2 5 5 5 4 6 3 3 8 Tactical Retreats 4 | . . 1 . . . . 3 . . Traps | -11 -10 -9 -8 -8 -7 -7 -7 -6 -6 ------- Run | Yrd Mat Mat Mat Sto Fac Was Fac Fac Low Traps Triggered 11 | . 4 . 1 1 5 . . . . Indirectly . | . . . . . . . . . . Trap Hack Attempts . | . . . . . . . . . . Triggered . | . . . . . . . . . . Disarmed . | . . . . . . . . . . Reprogrammed . | . . . . . . . . . . Reused . | . . . . . . . . . . Traps Extracted . | . . . . . . . . . . Installed . | . . . . . . . . . . Triggered . | . . . . . . . . . . Machines | -11 -10 -9 -8 -8 -7 -7 -7 -6 -6 ---------- Run | Yrd Mat Mat Mat Sto Fac Was Fac Fac Low Machines Disabled 7 | . . . 1 1 5 . . . . Max in Single Turn 3 | . . . 1 1 3 . . . . Machines Repaired . | . . . . . . . . . . Machines Dismantled . | . . . . . . . . . . Machines Sabotaged . | . . . . . . . . . . Overloaded Fab Kills . | . . . . . . . . . . Hacking | -11 -10 -9 -8 -8 -7 -7 -7 -6 -6 --------- Run | Yrd Mat Mat Mat Sto Fac Was Fac Fac Low Machines Accessed 15 | . 1 . 2 5 3 . 4 . . Terminals 10 | . 1 . 1 4 1 . 3 . . Fabricators 1 | . . . . . 1 . . . . Repair Stations 3 | . . . 1 1 1 . . . . Recycling Units . | . . . . . . . . . . Scanalyzers 1 | . . . . . . . 1 . . Garrison Access . | . . . . . . . . . . Total Hacks 37 | . 1 . 9 10 6 . 11 . . Successful 15 | . 1 . 4 6 1 . 3 . . Failed 21 | . . . 5 4 5 . 7 . . Catastrophic 6 | . . . 1 2 1 . 2 . . Database Lockouts 1 | . . . . . . . 1 . . Manual . | . . . . . . . . . . Terminals 26 | . 1 . 4 8 4 . 9 . . Fabricators 1 | . . . . . 1 . . . . Repair Stations 8 | . . . 5 2 1 . . . . Recycling Units . | . . . . . . . . . . Scanalyzers 2 | . . . . . . . 2 . . Garrison Access . | . . . . . . . . . . Terminal Hacks 8 | . 1 . . 5 . . 2 . . Robot Analysis 1 | . . . . 1 . . . . . Prototype ID Bank 1 | . . . . . . . 1 . . Open Door 2 | . . . . 2 . . . . . Alert Level 1 | . . . . 1 . . . . . Dispatch Records 1 | . . . . 1 . . . . . Recall Reinforcements 1 | . . . . . . . 1 . . Hauler Manifests 1 | . 1 . . . . . . . . Fabricator Hacks 1 | . . . . . 1 . . . . Build 1 | . . . . . 1 . . . . Repair Station Hacks 5 | . . . 4 1 . . . . . Scan Component 4 | . . . 3 1 . . . . . Repair 1 | . . . 1 . . . . . . Recycling Unit Hacks . | . . . . . . . . . . Scanalyzer 1 | . . . . . . . 1 . . Retrieve Study 1 | . . . . . . . 1 . . Garrison Access Hacks . | . . . . . . . . . . Unauthorized Hacks . | . . . . . . . . . . Terminals . | . . . . . . . . . . Fabricators . | . . . . . . . . . . Repair Stations . | . . . . . . . . . . Recycling Units . | . . . . . . . . . . Scanalyzers . | . . . . . . . . . . Garrison Access . | . . . . . . . . . . Data Cores Recovered 2 | . 1 . . . . . 1 . . Used 1 | . 1 . . . . . . . . Hacking Detections 9 | . . . 2 3 1 . 3 . . Full Trace Events 4 | . . . 1 2 1 . . . . Feedback Events . | . . . . . . . . . . Feedback Blocked . | . . . . . . . . . . Robot Schematics Acquired . | . . . . . . . . . . Robots Built . | . . . . . . . . . . Authchips . | . . . . . . . . . . Time . | . . . . . . . . . . Total Robot Build Rating . | . . . . . . . . . . Part Schematics Acquired . | . . . . . . . . . . Parts Built 2 | . . . . . 2 . . . . Authchips . | . . . . . . . . . . Time 117 | . . . . . 117 . . . . Total Part Build Rating 14 | . . . . . 14 . . . . Part Studies Acquired 1 | . . . . . . . 1 . . Parts Repaired 1 | . . . 1 . . . . . . Time 32 | . . . 32 . . . . . . Parts Recycled . | . . . . . . . . . . Recycled Matter . | . . . . . . . . . . Retrieved Matter . | . . . . . . . . . . Retrieved Components . | . . . . . . . . . . Parts Scanalyzed . | . . . . . . . . . . Part Schematics Acquired . | . . . . . . . . . . Parts Damaged . | . . . . . . . . . . Bothacking | -11 -10 -9 -8 -8 -7 -7 -7 -6 -6 ------------ Run | Yrd Mat Mat Mat Sto Fac Was Fac Fac Low Used RIF Installer . | . . . . . . . . . . Robots Hacked . | . . . . . . . . . . Non-combat . | . . . . . . . . . . Combat . | . . . . . . . . . . Robot Hacks Applied . | . . . . . . . . . . Relay Couplers Released . | . . . . . . . . . . Fabnet Peak Effective % . | . . . . . . . . . . Robots Rewired . | . . . . . . . . . . Allies Hacked . | . . . . . . . . . . Hacks Repelled . | . . . . . . . . . . Allies | -11 -10 -9 -8 -8 -7 -7 -7 -6 -6 -------- Run | Yrd Mat Mat Mat Sto Fac Was Fac Fac Low Total Allies . | . . . . . . . . . . Largest Group . | . . . . . . . . . . Highest-Rated Group . | . . . . . . . . . . Highest-Rated Ally . | . . . . . . . . . . Total Orders 1 | . . . . 1 . . . . . RETURN 1 | . . . . 1 . . . . . Ally Attacks . | . . . . . . . . . . Total Damage . | . . . . . . . . . . Kills . | . . . . . . . . . . Allies Corrupted . | . . . . . . . . . . Allies Melted . | . . . . . . . . . . Intel | -11 -10 -9 -8 -8 -7 -7 -7 -6 -6 ------- Run | Yrd Mat Mat Mat Sto Fac Was Fac Fac Low Active Infowar (turns) 4950 | 43 387 501 874 1109 1030 57 451 310 188 Optics 4112 | . . 93 874 1109 1030 57 451 310 188 Sensors 958 | . . . 321 . 330 57 250 . . Seismic 838 | 43 387 408 . . . . . . . Jamming 337 | . . . . . . . 40 297 . Robot Analysis Total 1 | . . . . 1 . . . . . Derelict Logs Recovered 2 | . . . . . . . . . 2 Drone Launches 16 | . . . . 16 . . . . . Drone Recoveries 12 | . . . . 12 . . . . . Exploration | -11 -10 -9 -8 -8 -7 -7 -7 -6 -6 ------------- Run | Yrd Mat Mat Mat Sto Fac Was Fac Fac Low Turns Passed 5135 | 176 387 523 874 1109 1030 57 451 310 218 Spaces Moved 4199 | 89 187 231 397 520 583 100 1170 312 610 Core 65 | 2 . . . . 2 . . 3 58 Treads 1534 | 87 187 231 37 478 422 . . 92 . Legs 402 | . . . 360 42 . . . . . Wheels . | . . . . . . . . . . Hover 182 | . . . . . 159 23 . . . Flight 2016 | . . . . . . 77 1170 217 552 Fastest Speed 30 | 50 160 160 120 120 56 32 30 30 30 Average Speed 89 | 157 160 165 139 146 135 49 31 69 32 Slowest Speed 275 | 160 160 170 190 225 225 116 114 200 275 Overloaded Moves . | . . . . . . . . . . Propulsion Burnouts . | . . . . . . . . . . Robots Hopped 4 | . . . . . . . 3 1 . Potential Cave-ins . | . . . . . . . . . . Cave-ins Triggered . | . . . . . . . . . . Exploration Rate (%) 38 | 5 25 22 28 78 11 97 33 7 75 Regions Visited 9 Branch Regions 2 Pre-discovered Areas . | . . . . . . . . . . Known Exits Taken . | . . . . . . . . . . Unknown Exits Taken 7 | 1 1 1 1 1 . . 1 1 . Scrap Searched . | . . . . . . . . . . Spaces Dug 1 | . . . 1 . . . . . . Terrain Destroyed 40 | . . . 7 4 29 . . . . Melee . | . . . . . . . . . . Projectile 11 | . . . 7 4 . . . . . AOE 29 | . . . . . 29 . . . . Terrain Rammed . | . . . . . . . . . . Walls Destroyed . | . . . . . . . . . . Machines Disabled . | . . . . . . . . . . Actions | -11 -10 -9 -8 -8 -7 -7 -7 -6 -6 --------- Run | Yrd Mat Mat Mat Sto Fac Was Fac Fac Low Total 5084 | 105 251 337 609 717 762 104 1217 361 621 Wait 323 | . 48 58 90 18 105 . . 4 . Move 4183 | 88 186 230 396 519 583 99 1163 309 610 Hop 4 | . . . . . . . 3 1 . Pick Up 33 | 1 . 5 12 4 3 . 4 4 . Fast Attach 65 | 7 1 5 8 10 19 . 7 7 1 Attach 22 | . 1 . 9 3 . 2 4 3 . Detach 10 | . . 1 3 1 . . 3 2 . Swap 46 | . . 11 10 13 4 . 5 3 . Drop 54 | . 1 8 12 14 7 . 5 7 . Fire 297 | 9 13 19 51 131 40 2 23 . 9 Melee 39 | . . . 17 1 . . . 21 . Ram 2 | . . . . . . 1 . . 1 Kick 1 | . . . 1 . . . . . . Crush 5 | . 1 . . 3 1 . . . . Escape Stasis . | . . . . . . . . . . Rewire . | . . . . . . . . . . Trap . | . . . . . . . . . . Miscellaneous . | . . . . . . . . . . Route ------- -11/Scrapyard -10/Materials -9/Materials -8/Materials -8/Storage -7/Factory -7/Waste -7/Factory (discovered 2 exits: [*Fac x2]) -6/Factory -6/Lower Caves History --------- Turn | Location | Event 10 | -11/Scrapyard | Discovered new exit (range 15) 177 | -11/Scrapyard | Entered Materials 311 | -10/Materials | Build established: Mutant 435 | -10/Materials | Discovered new exit (range 10) 564 | -10/Materials | Entered another Materials area 564 | -9/Materials | Evolved 2 slots: Utility x2 1026 | -9/Materials | Discovered new exit (range 18) 1087 | -9/Materials | Entered another Materials area 1087 | -8/Materials | Evolved 2 slots: Propulsion x1, Utility x1 1129 | -8/Materials | Repaired Imp. Treads 1239 | -8/Materials | Destroyed 7 combat bots 1689 | -8/Materials | Build established: Scavenger-Mutant 1843 | -8/Materials | Core integrity fell below 50% 1862 | -8/Materials | Lost 3 parts (1p1n1u) 1954 | -8/Materials | Discovered new exit (range 4) 1961 | -8/Materials | Entered Storage 2116 | -8/Storage | Lost 4 parts (1p2n1u) 2132 | -8/Storage | Garrison activated, responded to threat 2137 | -8/Storage | Build established: Mutant 2234 | -8/Storage | Garrison activated, responded to threat 2267 | -8/Storage | Lost 4 allies 2296 | -8/Storage | Lost 3 parts (3u) 2635 | -8/Storage | Core integrity fell below 20% 3026 | -8/Storage | Discovered new exit (range 12) 3070 | -8/Storage | Entered Factory 3070 | -7/Factory | Evolved 2 slots: Power x1, Utility x1 3586 | -7/Factory | Fabricated HERF Cannon (x2) 3929 | -7/Factory | Lost 4 parts (2n1u1w) 4100 | -7/Factory | Sucked down chute 4100 | -7/Factory | Entered Waste 4109 | -7/Waste | Spotted C-40 Crusher 4110 | -7/Waste | Spotted C-40 Crusher 4115 | -7/Waste | EMP discharged 4115 | -7/Waste | System corruption reached 10% 4123 | -7/Waste | Crushed by Compactor (1 part destroyed, 2 dropped) 4124 | -7/Waste | Spotted C-40 Crusher 4142 | -7/Waste | Spotted C-40 Crusher 4143 | -7/Waste | Spotted C-40 Crusher 4143 | -7/Waste | Spotted C-40 Crusher 4154 | -7/Waste | Discovered new exit (range 10) 4157 | -7/Waste | Entered Factory 4280 | -7/Factory | Discovered new exit (range 18) 4369 | -7/Factory | Central database locked down 4413 | -7/Factory | Build established: Sprinter 4586 | -7/Factory | Discovered new exit (range 5) 4608 | -7/Factory | Entered another Factory area 4608 | -6/Factory | Evolved 2 slots: Utility x2 4742 | -6/Factory | Lost 3 parts (1p1u1w) 4842 | -6/Factory | Build established: Mutant 4901 | -6/Factory | Discovered new exit (range 17) 4905 | -6/Factory | Lost 4 parts (1p3n) 4918 | -6/Factory | Entered Lower Caves 4976 | -6/Lower Caves | Learned Factory stockpile data 4984 | -6/Lower Caves | Learned location of 1 exit from Factory 5106 | -6/Lower Caves | Released all parts (9) 5120 | -6/Lower Caves | Core integrity fell below 50% 5134 | -6/Lower Caves | Core integrity fell below 20% 5136 | -6/Lower Caves | Destroyed by S-27 Virus with Autogun Last Messages --------------- 04959_ Acquired Phase Shifter. 04960_ Acquired 10 matter. 04976_ Acquired derelict log, extracted data. Data stored: Factory stockpile data. 04984_ Acquired derelict log, extracted data. Data stored: Factory exits (x1). 05100_ Phase Shifter destroyed. 05103_ Xenon Bombardment Thruster destroyed. 05103_ VTOL Module destroyed. 05106_ Lgt. Nuclear Core destroyed. 05106_ Released Cld. Pulse Rifle. 05106_ Released VTOL Module. 05106_ Released Coolant Injector. 05106_ Released Corruption Screen. 05106_ Released Adv. Targeting Computer. 05106_ Released Adv. Visual Processing Unit. 05106_ Released Transmission Jammer. 05106_ Released Focal Shield. 05106_ Released Com. Battery. 05131_ Slammed into S-27 Virus. Map ----- +----------------------------------------------------+ | | | | | | | ?????????????????????????????????????????????????? | | ?????????????????????????????????????????????????? | | ?????????????????????????????????????????????????? | | ?????????????????????????????????????????????????? | | ?????????????????????????????????????????????????? | | ?????????????????????????????????????????????????? | | ?????????????????????????????????????????????????? | | ?????????????????????????????????????????????????? | | ?????????????????????????????????????????????????? | | ?????????????????????????????????????????????????? | | ?????????????????????????????????????????????????? | | ?????????????????????????????????????????????????? | | ??????????????????????????????????????#######????? | | ??????????????????????????????????????# "" "#????? | | ???????????????#######????????????????# """ #????? | | ?????????????### ##???????????????#" "" #????? | | ?????????????# #????????????????# #?????? | | ?????????????# ###????????####?#### ####??? | | ?????????????# ##?????###?# ### # ##?? | | ?????????????## #????### ## ## ### #?? | | ?????????????## %###?## ## ## ##? | | ????????????## s s ### #?????# ! #? | | ????????????# ss @ ##????## =[! #? | | ????????????# l g ######## !! ##? | | ????????????# ## g g ##? | | ????????????###?## ### ## ## | | ?????????????????##### ## ## ### ## | | ?????????????????????####### ## | | ???????????????????????????## | | ????????????????????????????## ## | | ?????????????????????????????### ### | | ???????????????????????????????# #?## | | ???????????????????????????????## #??###### | | ????????????????????????????????## #??????## | | ?????????????????????????????????# #??????# | | ?????????????????????????????????# #?????# | | ?????????????????????????????????# #????# | | ?????????????????????????????????# #????# | | ????????????????????????????????? % #???## | | ????????????????????????????????? ## #??## | | ????????????????????????????????? #? #??# # | | ????????????????????????????????? #?# ??# # | | ????????????????????????????????? ??# ??## | | ????????????????????????????????? ?????## | | ?????????????????????????????????? ??????# | | ??????????????????????????????????????????## | | ??????????????????????????????????????????# | +----------------------------------------------------+ Best States ------------- Heat Dissipation 62 Coolant Potential 65 Energy Generation 26 Energy Capacity 410 Matter Stores 550 Matter Capacity 600 Sight Range 20 Robot Scan Range 15 Terrain Scan Density 160 Jamming Range 12 Additional Mass Support 9 Corruption Block 8 Armor Coverage 225 Resistance: KI 20 Weapon Shielding 66 Phase Shifting 5 Evasion (%) 69 Targeting Accuracy 8 Recoil Reduction 3 Item Schematics ----------------- None Robot Schematics ------------------ None Fabricated ------------ HERF Cannon | x2 | -7/Factory | Preloaded Repaired ---------- Imp. Treads | 65% | -8/Materials Studied --------- Gatling Laser | -7/Factory | Hacked Alien Tech Used ----------------- None Achievements -------------- Hammer Time Shopping List Total Silence Challenges ------------ None Game ------ Seed FactoryCoolantLog Manual? 0 Play Time 01:05:24 Cumulative 16.1 hours Start 2026.04.25 @ 15:48:36 End 2026.04.25 @ 16:52:34 Sessions 1 Manual Loads 0 Difficulty Rogue Special Mode None Game No. 19 Rogue 3 Adventurer 16 Explorer 0 Win Type - Total 0 Types 0/0/0/0/0/0/0/0/0/0 Lore% 28 Gallery% 24 Achievement% 21 Wizard Run 0 Options --------- Layout 1 ASCII 0 Keyboard 0 Movement Mouse Keybinds 0 Fullscreen 1 Font 24/Smallcaps Map View 50x35 Zoom Use 0% Tactical HUD 1 Map Filters NONE Filters NONE Steam 1 RUN: 160c544f-78f3-42df-8224-a602be9500f5